fUSD/lending_fUSD_20241125
["ID","MTS","AMOUNT","RATE_DAILY","PERIOD"]
[343312721,1732571432290,-395.1410028,0.00017626,2]
[343312722,1732571432302,-1966.81,0.00017725,2]
[343312723,1732571432312,-395.1410028,0.00017823,2]
[343312724,1732571432322,-775.41,0.00017851,2]
[343312725,1732571432332,-163.7,0.00017869,2]
[343312726,1732571432344,-371.97,0.0001792,2]
[343312727,1732571432353,-592.4,0.00017957,2]
[343312728,1732571432363,-150.0,0.00017975,2]
[343312729,1732571432371,-150.0,0.00018056,2]
[343312730,1732571432381,-395.1410028,0.00018088,2]
[343312731,1732571432392,-200.0,0.00018193,2]
[343312732,1732571432401,-494.67426075,0.00018215,2]
[343312733,1732571436706,-532.03223872,0.00016876,2]
[343312734,1732571436716,-703.77573925,0.00018215,2]
[343312735,1732571436725,-23900.0,0.00018392,2]
[343312736,1732571436734,-600.0,0.00018392,2]
[343312737,1732571436744,-378.89,0.00018514,2]
[343312738,1732571436754,-250.0,0.00018518,2]
[343312739,1732571436763,-178.04,0.00018529,2]
[343312740,1732571436773,-2190.31,0.00018539,2]
[343312741,1732571436783,-3132.78,0.00018542,2]
[343312742,1732571436792,-835.65,0.00018547,2]
[343312743,1732571436801,-200.0,0.0001857,2]
[343312744,1732571436810,-2607.4,0.00018571,2]
[343312745,1732571436820,-395.1410028,0.00018601,2]
[343312746,1732571436829,-1000.0,0.00018608,2]
[343312747,1732571436840,-166.42,0.00018626,2]
[343312748,1732571436850,-500.0,0.0001865,2]
[343312749,1732571436861,-191.2257188,0.0001865,2]
[343312750,1732571436870,-159.23117549,0.0001865,2]
[343312751,1732571436880,-500.0,0.0001865,2]
[343312753,1732571436889,-500.0,0.0001865,2]
[343312755,1732571436898,-150.0,0.0001865,2]
[343312757,1732571436907,-3342.72,0.0001874,2]
[343312759,1732571436916,-395.1410028,0.00018768,2]
[343312761,1732571436925,-178.04,0.00018781,2]
[343312762,1732571436935,-1243.72,0.00018791,2]
[343312764,1732571436944,-440.85,0.00018833,2]
[343312766,1732571436953,-4900.0,0.000189,6]
[343312768,1732571436963,-800.0,0.000189,6]
[343312770,1732571436972,-600.0,0.000189,6]
[343312771,1732571436982,-395.1410028,0.00018935,2]
[343312773,1732571436994,-159.23756615,0.0001898,2]
[343312775,1732571437003,-160.81978019,0.0001898,2]
[343312776,1732571437012,-558.07771423,0.0001898,2]
[343312777,1732571437021,-2259.87,0.00018983,2]
[343312778,1732571437031,-178.04,0.0001899,2]
[343312779,1732571437040,-9900.0,0.00019,6]
[343312780,1732571437050,-1700.0,0.00019,6]
[343312781,1732571437059,-1200.0,0.00019,6]
[343312782,1732571437070,-178.04,0.0001909,2]
[343312783,1732571437091,-14900.0,0.000191,6]
[343312784,1732571437110,-2600.0,0.000191,6]
[343312785,1732571437131,-1900.0,0.000191,6]
[343312786,1732571437150,-1198.45,0.00019126,2]
[343312787,1732571437166,-178.04,0.0001919,2]
[343312788,1732571437185,-704.52080262,0.00019198,2]
[343312789,1732571437205,-1000.0,0.00019198,2]
[343312790,1732571437226,-1000.0,0.00019198,2]
[343312791,1732571437244,-395.1410028,0.00019198,2]
[343312792,1732571437262,-19900.0,0.000192,7]
[343312793,1732571437280,-3500.0,0.000192,7]
[343312794,1732571437295,-2500.0,0.000192,7]
[343312795,1732571437313,-817.76,0.00019225,3]
[343312796,1732571437328,-178.04,0.00019225,2]
[343312797,1732571437349,-11503.85184629,0.00019235,2]
[343312798,1732571437364,-178.04,0.0001929,2]
[343312799,1732571437384,-178.04,0.0001929,2]
[343312800,1732571437399,-24900.0,0.000193,7]
[343312801,1732571437414,-4400.0,0.000193,7]
[343312802,1732571437429,-3200.0,0.000193,7]
[343312803,1732571437444,-11503.85184625,0.00019309,2]
[343312804,1732571437459,-178.04,0.00019325,2]
[343312805,1732571437474,-250.0,0.00019335,2]
[343312806,1732571437489,-163.7,0.00019358,2]
[343312807,1732571437504,-11503.85184625,0.00019383,2]
[343312808,1732571437519,-270.89,0.0001939,3]
[343312809,1732571437533,-812.67,0.0001939,3]
[343312810,1732571437548,-178.04,0.0001939,2]
[343312811,1732571437562,-4900.0,0.000194,7]
[343312812,1732571437578,-800.0,0.000194,7]
[343312813,1732571437596,-600.0,0.000194,7]
[343312814,1732571437610,-11503.85184625,0.00019457,2]
[343312815,1732571437625,-541.77,0.0001949,3]
[343312816,1732571437639,-4900.0,0.000195,7]
[343312817,1732571437653,-800.0,0.000195,7]
[343312818,1732571437668,-600.0,0.000195,7]
[343312819,1732571437682,-11503.85184625,0.00019531,2]
[343312820,1732571437697,-4900.0,0.000196,7]
[343312821,1732571437712,-800.0,0.000196,7]
[343312822,1732571437726,-600.0,0.000196,7]
[343312823,1732571437741,-11503.85184625,0.00019604,2]
[343312824,1732571437756,-395.1410028,0.0001961,2]
[343312825,1732571437771,-11503.85184625,0.00019678,2]
[343312826,1732571437785,-4900.0,0.000197,7]
[343312827,1732571437800,-800.0,0.000197,7]
[343312828,1732571437814,-600.0,0.000197,7]
[343312829,1732571437829,-1500.0,0.00019706,2]
[343312830,1732571437849,-150.0,0.00019733,2]
[343312831,1732571437864,-11503.85184625,0.00019752,2]
[343312832,1732571437879,-150.0,0.00019758,2]
[343312833,1732571437894,-150.0,0.00019764,2]
[343312834,1732571437910,-150.0,0.00019792,2]
[343312835,1732571437925,-6438.0,0.00019797,2]
[343312836,1732571437939,-5622.0,0.000198,7]
[343312837,1732571437954,-1600.0,0.000198,7]
[343312838,1732571437969,-1000.0,0.000198,7]
[343312839,1732571437984,-2768.59495,0.000198,2]
[343312840,1732571438000,-11503.85184625,0.00019826,2]
[343312841,1732571438015,-316.66095455,0.00019831,2]
[343312842,1732571438029,-150.0,0.00019832,2]
[343312843,1732571438044,-500.0,0.00019855,2]
[343312844,1732571438058,-500.0,0.00019855,2]
[343312845,1732571438073,-585.19695288,0.00019855,2]
[343312846,1732571438093,-500.0,0.00019855,2]
[343312847,1732571438108,-500.0,0.00019855,2]
[343312848,1732571438124,-500.0,0.00019855,2]
[343312849,1732571438139,-500.0,0.00019855,2]
[343312850,1732571438153,-500.0,0.00019855,2]
[343312851,1732571438168,-500.0,0.00019855,2]
[343312852,1732571438183,-500.0,0.00019855,2]
[343312853,1732571438197,-500.0,0.00019855,2]
[343312854,1732571438212,-500.0,0.00019855,2]
[343312855,1732571438229,-500.0,0.00019855,2]
[343312856,1732571438244,-500.0,0.00019855,2]
[343312857,1732571438260,-500.0,0.00019855,2]
[343312858,1732571438275,-500.0,0.00019855,2]
[343312859,1732571438290,-500.0,0.00019855,2]
[343312860,1732571438305,-500.0,0.00019855,2]
[343312861,1732571438320,-500.0,0.00019855,2]
[343312862,1732571438334,-500.0,0.00019855,2]
[343312863,1732571438354,-500.0,0.00019855,2]
[343312864,1732571438367,-500.0,0.00019855,2]
[343312865,1732571438382,-500.0,0.00019855,2]
[343312866,1732571438397,-500.0,0.00019855,2]
[343312867,1732571438411,-500.0,0.00019855,2]
[343312868,1732571438425,-500.0,0.00019855,2]
[343312869,1732571438440,-500.0,0.00019855,2]
[343312870,1732571438454,-500.0,0.00019855,2]
[343312871,1732571438468,-500.0,0.00019855,2]
[343312872,1732571438482,-606.88616942,0.00019855,2]
[343312873,1732571438496,-500.0,0.00019855,2]
[343312874,1732571438511,-500.0,0.00019855,2]
[343312875,1732571438526,-500.0,0.00019855,2]
[343312876,1732571438540,-500.0,0.00019855,2]
[343312877,1732571438555,-500.0,0.00019855,2]
[343312878,1732571438569,-500.0,0.00019855,2]
[343312879,1732571438583,-500.0,0.00019855,2]
[343312880,1732571438601,-400.28610642,0.00019855,2]
[343312881,1732571438616,-500.0,0.00019855,2]
[343312882,1732571438631,-500.0,0.00019855,2]
[343312883,1732571438646,-500.0,0.00019855,2]
[343312884,1732571438657,-500.0,0.00019855,2]
[343312885,1732571438667,-500.0,0.00019855,2]
[343312886,1732571438676,-500.0,0.00019855,2]
[343312887,1732571438685,-500.0,0.00019855,2]
[343312888,1732571438694,-500.0,0.00019855,2]
[343312889,1732571438703,-500.0,0.00019855,2]
[343312890,1732571438713,-461.83162219,0.00019855,2]
[343312891,1732571438722,-500.0,0.00019855,2]
[343312892,1732571438731,-500.0,0.00019855,2]
[343312893,1732571438740,-500.0,0.00019855,2]
[343312894,1732571438750,-500.0,0.00019855,2]
[343312929,1732571439139,-500.0,0.00019855,2]
[343312931,1732571439152,-500.0,0.00019855,2]
[343312933,1732571439162,-500.0,0.00019855,2]
[343312935,1732571439172,-500.0,0.00019855,2]
[343312937,1732571439181,-500.0,0.00019855,2]
[343312939,1732571439190,-500.0,0.00019855,2]
[343312941,1732571439198,-500.0,0.00019855,2]
[343312942,1732571439207,-500.0,0.00019855,2]
[343312944,1732571439216,-500.0,0.00019855,2]
[343312946,1732571439230,-500.0,0.00019855,2]
[343312948,1732571439239,-500.0,0.00019855,2]
[343312950,1732571439248,-500.0,0.00019855,2]
[343312952,1732571439257,-500.0,0.00019855,2]
[343312954,1732571439267,-500.0,0.00019855,2]
[343312956,1732571439276,-500.0,0.00019855,2]
[343312958,1732571439285,-500.0,0.00019855,2]
[343312959,1732571439295,-500.0,0.00019855,2]
[343312961,1732571439305,-500.0,0.00019855,2]
[343312963,1732571439314,-500.0,0.00019855,2]
[343312965,1732571439323,-500.0,0.00019855,2]
[343312967,1732571439332,-500.0,0.00019855,2]
[343312969,1732571439343,-500.0,0.00019855,2]
[343312971,1732571439352,-500.0,0.00019855,2]
[343312973,1732571439361,-500.0,0.00019855,2]
[343312975,1732571439370,-500.0,0.00019855,2]
[343312977,1732571439380,-500.0,0.00019855,2]
[343312978,1732571439389,-500.0,0.00019855,2]
[343312980,1732571439397,-500.0,0.00019855,2]
[343312982,1732571439407,-500.0,0.00019855,2]
[343312984,1732571439416,-500.0,0.00019855,2]
[343312986,1732571439425,-500.0,0.00019855,2]
[343312988,1732571439434,-500.0,0.00019855,2]
[343312990,1732571439443,-500.0,0.00019855,2]
[343312992,1732571439452,-500.0,0.00019855,2]
[343312994,1732571439462,-500.0,0.00019855,2]
[343312996,1732571439471,-500.0,0.00019855,2]
[343312997,1732571439480,-500.0,0.00019855,2]
[343312999,1732571439489,-500.0,0.00019855,2]
[343313001,1732571439498,-500.0,0.00019855,2]
[343313003,1732571439508,-500.0,0.00019855,2]
[343313005,1732571439516,-500.0,0.00019855,2]
[343313007,1732571439525,-500.0,0.00019855,2]
[343313009,1732571439534,-500.0,0.00019855,2]
[343313011,1732571439543,-500.0,0.00019855,2]
[343313013,1732571439551,-150.0,0.00019857,2]
[343313015,1732571439561,-19384.36107106,0.00019867,2]
[343313016,1732571439570,-150.0,0.00019872,2]
[343313018,1732571439580,-150.0,0.00019877,2]
[343313020,1732571439592,-19384.36107106,0.00019878,2]
[343313022,1732571439601,-19384.36107106,0.00019889,2]
[343313024,1732571439611,-1423.04981083,0.0001989,2]
[343313026,1732571439620,-524.9858268,0.00019892,2]
[343313028,1732571439629,-524.9858268,0.00019896,2]
[343313030,1732571439638,-168.28916001,0.00019899,2]
[343313031,1732571439648,-7181.96787061,0.00019899,2]
[343313033,1732571439658,-288.68515958,0.00019899,2]
[343313035,1732571439667,-233.95154926,0.00019899,2]
[343313037,1732571439677,-1538.42986053,0.000199,2]
[343313039,1732571439687,-525.89556291,0.000199,2]
[343313041,1732571439697,-19384.36107106,0.000199,2]
[343313043,1732571439706,-524.9858268,0.000199,2]
[343313045,1732571439717,-11503.85184625,0.000199,2]
[343313047,1732571439726,-150.0,0.00019905,2]
[343313048,1732571439735,-1500.0,0.00019923,2]
[343313049,1732571439745,-150.0,0.00019924,2]
[343313050,1732571439755,-1500.0,0.00019927,2]
[343313051,1732571439764,-150.01,0.00019928,2]
[343313052,1732571439775,-395.1410043,0.00019929,2]
[343313053,1732571439784,-1500.0,0.00019935,2]
[343313054,1732571439793,-1500.0,0.00019936,2]
[343313055,1732571439803,-1500.0,0.00019945,2]
[343313056,1732571439813,-150.0,0.00019955,2]
[343313057,1732571439822,-167.83,0.0001996,2]
[343313058,1732571439831,-2206.0,0.00019973,2]
[343313059,1732571439844,-2959.0,0.00019973,2]
[343313061,1732571439855,-162.70218529,0.00019973,2]
[343313063,1732571439864,-594.77946962,0.00019973,2]
[343313065,1732571439874,-500.0,0.00019973,2]
[343313067,1732571439883,-159.25429718,0.00019973,2]
[343313069,1732571439893,-158.79453722,0.00019973,2]
[343313071,1732571439902,-150.0,0.00019973,4]
[343313074,1732571439912,-7064.03746002,0.00019973,2]
[343313085,1732571439998,-6412.96253998,0.00019973,2]
[343313087,1732571440007,-379.01185571,0.00019973,2]
[343313089,1732571440016,-796.0,0.00019973,2]
[343313092,1732571440026,-1046.0,0.00019973,2]
[343313095,1732571440036,-150.21687915,0.00019973,2]
[343313097,1732571440045,-159.07270322,0.00019973,2]
[343313101,1732571440055,-514.9947054,0.00019973,2]
[343313104,1732571440065,-500.0,0.00019973,2]
[343313106,1732571440074,-500.0,0.00019973,2]
[343313109,1732571440084,-500.0,0.00019973,2]
[343313112,1732571440097,-513.90394174,0.00019973,2]
[343313115,1732571440106,-205.74853815,0.00019973,2]
[343313117,1732571440115,-151.0,0.00019973,2]
[343313119,1732571440126,-150.0,0.00019975,2]
[343313121,1732571440135,-150.0,0.00019979,2]
[343313123,1732571440144,-1423.04981083,0.00019987,2]
[343313125,1732571440154,-611.33817582,0.00019987,2]
[343313134,1732571440194,-811.71163501,0.00019987,2]
[343313136,1732571440204,-804.9,0.00019996,2]
[343313139,1732571440214,-4927.4020864,0.00019996,2]
[343313142,1732571440227,-196.00888595,0.00019997,2]
[343313145,1732571440237,-196.00888595,0.00019997,2]
[343313148,1732571440247,-8385.18539385,0.00019997,2]
[343313152,1732571440259,-368.4,0.00019997,2]
[343313156,1732571440270,-24862.37314266,0.00019997,2]
[343313159,1732571440282,-9401.88,0.00019997,2]
[343313162,1732571440294,-38385.92185294,0.00019997,2]
[343313165,1732571440306,-1312.37737715,0.00019997,2]
[343313234,1732571440834,-3277.24522284,0.00019997,2]
[343313246,1732571440940,-3533.68674762,0.00019997,2]
[343313248,1732571440953,-8590.94023327,0.00019997,2]
[343313250,1732571440965,-1917.93031573,0.00019997,2]
[343313252,1732571440977,-1993.52320006,0.00019997,2]
[343313262,1732571441066,-6680.16160055,0.00019997,2]
[343313266,1732571441094,-5598405.57005773,0.00019997,2]
[343313268,1732571441104,-1000.0,0.00019999,2]
[343313270,1732571441114,-151.0,0.00019999,2]
[343313272,1732571441126,-151.0,0.00019999,2]
[343313274,1732571441137,-1000.0,0.00019999,2]
[343313276,1732571441147,-261.19534869,0.00019999,2]
[343313278,1732571441157,-1477.8820004,0.00019999,5]
[343313280,1732571441166,-1000.0,0.00019999,2]
[343313282,1732571441176,-1000.0,0.00019999,2]
[343313284,1732571441185,-1000.0,0.00019999,2]
[343313286,1732571441195,-1000.0,0.00019999,2]
[343313288,1732571441204,-1076.03388586,0.00019999,5]
[343313290,1732571441214,-1076.03388587,0.00019999,5]
[343313292,1732571441226,-1019.33870642,0.00019999,5]
[343313294,1732571441235,-1019.33870642,0.00019999,5]
[343313296,1732571441244,-1019.33870642,0.00019999,5]
[343313297,1732571441254,-1019.33870642,0.00019999,5]
[343313299,1732571441264,-1019.33870642,0.00019999,5]
[343313301,1732571441275,-1019.33870642,0.00019999,5]
[343313304,1732571441284,-1019.33870642,0.00019999,5]
[343313305,1732571441295,-1019.33870642,0.00019999,5]
[343313307,1732571441306,-1019.33870646,0.00019999,5]
[343313309,1732571441316,-1019.33870642,0.00019999,5]
[343313311,1732571441326,-1019.33870642,0.00019999,5]
[343313313,1732571441335,-1019.33870642,0.00019999,5]
[343313315,1732571441349,-98072043.38090837,0.0002,2]
[343313317,1732571441362,-207233.96298024,0.0002,2]
[343313324,1732571441417,-2.92798116,0.0002,2]
[343313326,1732571441429,-18803.8,0.0002,2]
[343313330,1732571441453,-472.16,0.0002,2]
[343313332,1732571441464,-367.56723535,0.0002,2]
[343313334,1732571441476,-9461.0168842,0.0002,2]
[343313382,1732571441950,-47094.00000003,0.0002,2]
[343313405,1732571442220,-28318.29,0.0002,2]
[343313407,1732571442235,-282058.36463513,0.0002,2]
[343313410,1732571442256,-743.64066667,0.0002,2]
[343313412,1732571442269,-4615.076843,0.0002,2]
[343313413,1732571442307,-379.31265472,0.00019897,2]
[343313417,1732571443232,-676.18544215,0.00019897,2]
[343313418,1732571443322,-4294.92371426,0.00019897,2]
[343313419,1732571443332,-218.36,0.00019963,3]
[343313420,1732571443343,-96564.48763647,0.0002,2]
[343313421,1732571443359,-1213.95139382,0.0002,2]
[343313422,1732571443430,-2995.39014086,0.0002,2]
[343313423,1732571443442,-3746.95981978,0.0002,2]
[343313424,1732571443454,-5216.07201905,0.0002,2]
[343313425,1732571443466,-266.48630676,0.0002,2]
[343313426,1732571443477,-1145.11578986,0.0002,2]
[343313427,1732571443488,-14178.81278016,0.0002,2]
[343313428,1732571443499,-450.00609752,0.0002,2]
[343313429,1732571443529,-285.76585201,0.0002,2]
[343313430,1732571443547,-38462.49794691,0.0002,2]
[343313431,1732571443701,-188546.0,0.0002,2]
[343313432,1732571443714,-3592.6861278,0.0002,2]
[343313433,1732571443726,-3930.83925213,0.0002,2]
[343313434,1732571443738,-10232.50563628,0.0002,2]
[343313435,1732571443749,-5957.44559853,0.0002,2]
[343313436,1732571443761,-2259.60936662,0.0002,2]
[343313455,1732571446144,-305.09086696,0.00019899,3]
[343313456,1732571446154,-421.91013043,0.0002,2]
[343313457,1732571446185,-5946.74921341,0.0002,2]
[343313458,1732571446234,-2325.00000096,0.0002,2]
[343313459,1732571446245,-282.814296,0.0002,2]
[343313460,1732571446266,-943.54766426,0.0002,2]
[343313461,1732571446277,-2395.37156511,0.0002,2]
[343313462,1732571446288,-7369.94051831,0.0002,2]
[343313463,1732571446301,-1884.94306,0.0002,2]
[343313464,1732571446340,-939.74,0.0002,2]
[343313465,1732571446372,-10478.22353189,0.0002,2]
[343313466,1732571446439,-139855.91999491,0.0002,2]
[343313469,1732571490480,2580.97,0.00026986,120]
[343313470,1732571633317,309.31,0.00019089,30]
[343313471,1732571633510,309.31,0.00021673,30]
[343313472,1732571711163,300.0,0.00019999,10]
[343313474,1732571895506,440.85,0.00025292,120]
[343313482,1732572143616,59400.0,0.000245,60]
[343313487,1732572251162,300.0,0.00019999,10]
[343313488,1732572327481,286.04,0.00017922,30]
[343313489,1732572327942,286.04,0.00020506,30]
[343313490,1732572378837,-67.3,0.00025292,120]
[343313491,1732572378860,-55.03,0.00026986,120]
[343313492,1732572378881,-800.0,0.00026986,120]
[343313493,1732572378906,-277.67,0.00027,120]
[343313500,1732572468079,-167.83,0.00014276,2]
[343313501,1732572468104,-2812.33968856,0.00014469,2]
[343313502,1732572468131,-172.72,0.00014569,2]
[343313503,1732572468156,-2812.33968856,0.00015158,2]
[343313504,1732572468180,-2812.33968856,0.00015847,2]
[343313505,1732572468206,-1429.907759,0.00015947,2]
[343313506,1732572468231,-188.50599756,0.00016109,2]
[343313507,1732572468259,-2198.67,0.00016209,2]
[343313508,1732572468284,-150.0,0.00017116,2]
[343313509,1732572468309,-2037.92,0.00017545,2]
[343313510,1732572468334,-250.0,0.00017704,2]
[343313511,1732572468359,-1000.0,0.00017728,2]
[343313512,1732572468387,-2751.0,0.00017758,2]
[343313513,1732572468412,-1585.19,0.00017867,2]
[343313514,1732572468438,-1063.49,0.00018069,2]
[343313515,1732572468465,-250.0,0.00018088,2]
[343313516,1732572468491,-166.51,0.00018138,2]
[343313517,1732572468518,-500.0,0.00018197,2]
[343313518,1732572468544,-1000.0,0.00018391,2]
[343313519,1732572468571,-508.15,0.00018395,2]
[343313520,1732572468597,-150.0,0.00018467,2]
[343313521,1732572468628,-2198.67,0.00018473,2]
[343313522,1732572468654,-200.0,0.00018473,2]
[343313523,1732572468680,-21594.41717776,0.00018568,2]
[343313589,1732572581256,-286.04,0.0002309,30]
[343313590,1732572581285,-854.96,0.00024,30]
[343313591,1732572581583,467.77,0.00025613,120]
[343313592,1732572585106,-1000.0,0.00024,30]
[343313593,1732572588995,-475.80736758,0.00024,30]
[343313594,1732572618322,-525.0,0.000245,60]
[343313622,1732572632313,-150.0,0.00018,2]
[343313623,1732572632324,-3849.37093081,0.00018443,2]
[343313624,1732572632370,-610.56,0.00018443,2]
[343313625,1732572632476,-1455.510675,0.00018443,2]
[343313626,1732572632604,-4202.2320185,0.00018443,2]
[343313627,1732572632616,-13782.32637569,0.00018443,2]
[343313628,1732572632627,-877.73,0.00018574,2]
[343313629,1732572632636,-467.77,0.00018628,2]
[343313630,1732572632645,-300.0,0.0001863,2]
[343313631,1732572632654,-1635.43511548,0.00018631,2]
[343313632,1732572632666,-9550.05828452,0.00018631,2]
[343313633,1732572632675,-10697.292,0.00018731,2]
[343313634,1732572632685,-1000.0,0.00018739,2]
[343313635,1732572632695,-500.0,0.00018773,2]
[343313636,1732572632704,-500.0,0.00018773,2]
[343313637,1732572632714,-500.0,0.00019,2]
[343313638,1732572632725,-421.9363549,0.00019002,2]
[343313639,1732572632735,-11231.71336058,0.00019012,2]
[343313640,1732572632754,-2917.17139659,0.00019012,2]
[343313641,1732572632764,-14148.88475715,0.00019111,2]
[343313642,1732572632774,-166.7,0.00019112,2]
[343313643,1732572632784,-851.45,0.00019153,2]
[343313644,1732572632794,-4076.79568115,0.00019209,2]
[343313645,1732572632836,-1517.10176605,0.00019209,2]
[343313646,1732572632848,-8554.98730995,0.00019209,2]
[343313648,1732572632857,-421.9363549,0.00019273,2]
[343313650,1732572632867,-14148.88475715,0.00019308,2]
[343313652,1732572632877,-1000.0,0.00019321,2]
[343313654,1732572632886,-1000.0,0.00019321,2]
[343313656,1732572632895,-500.0,0.000194,2]
[343313658,1732572632905,-14148.88475715,0.00019407,2]
[343313660,1732572632914,-421.9363549,0.00019461,2]
[343313662,1732572632924,-877.73,0.00019502,2]
[343313664,1732572632933,-14148.88475715,0.00019505,2]
[343313666,1732572632942,-14148.88475715,0.00019604,2]
[343313668,1732572632950,-14148.88475715,0.00019703,2]
[343313670,1732572632960,-20908.45029384,0.0001974,2]
[343313672,1732572632970,-20908.45029383,0.00019758,2]
[343313674,1732572632982,-20908.45029383,0.00019776,2]
[343313676,1732572632992,-812.68,0.00019791,3]
[343313678,1732572633002,-20908.45029383,0.00019793,2]
[343313680,1732572633011,-672.01858,0.000198,2]
[343313682,1732572633021,-14148.88475715,0.00019801,2]
[343313684,1732572633031,-20908.45029383,0.00019811,2]
[343313686,1732572633040,-20908.45029383,0.00019829,2]
[343313688,1732572633050,-500.0,0.0001984,2]
[343313690,1732572633060,-20908.45029383,0.00019847,2]
[343313692,1732572633071,-20908.45029383,0.00019864,2]
[343313694,1732572633080,-500.0,0.00019873,2]
[343313696,1732572633090,-20908.45029383,0.00019882,2]
[343313698,1732572633100,-170.57037618,0.00019899,2]
[343313700,1732572633110,-181.61476702,0.00019899,2]
[343313702,1732572633120,-166.94503017,0.00019899,2]
[343313704,1732572633130,-807.75882985,0.00019899,2]
[343313706,1732572633140,-181.61476702,0.000199,2]
[343313708,1732572633150,-807.75882985,0.000199,2]
[343313710,1732572633159,-170.57037618,0.000199,2]
[343313711,1732572633167,-181.61476702,0.000199,2]
[343313713,1732572633176,-5726.55665104,0.000199,2]
[343313715,1732572633185,-166.94503016,0.000199,2]
[343313717,1732572633195,-14148.88475715,0.000199,2]
[343313720,1732572633206,-807.75882985,0.000199,2]
[343313722,1732572633216,-28093.51343418,0.000199,2]
[343313723,1732572633229,-610.1817339,0.000199,3]
[343313726,1732572633239,-20908.45029383,0.000199,2]
[343313727,1732572633250,-414.60017621,0.000199,2]
[343313730,1732572633261,-538.8351098,0.000199,2]
[343313732,1732572633271,-421.93635492,0.0001991,2]
[343313734,1732572633281,-1000.0,0.00019945,2]
[343313736,1732572633292,-270.88,0.00019962,3]
[343313738,1732572633302,-500.0,0.00019972,2]
[343313740,1732572633312,-500.0,0.00019972,2]
[343313742,1732572633322,-500.0,0.00019972,2]
[343313744,1732572633332,-500.0,0.00019972,2]
[343313745,1732572633343,-500.0,0.00019972,2]
[343313748,1732572633360,-500.0,0.00019972,2]
[343313750,1732572633373,-500.0,0.00019972,2]
[343313752,1732572633385,-500.0,0.00019972,2]
[343313754,1732572633395,-500.0,0.00019972,2]
[343313756,1732572633405,-500.0,0.00019972,2]
[343313758,1732572633415,-500.0,0.00019972,2]
[343313760,1732572633425,-500.0,0.00019972,2]
[343313762,1732572633435,-500.0,0.00019972,2]
[343313764,1732572633445,-500.0,0.00019972,2]
[343313765,1732572633454,-500.0,0.00019972,2]
[343313767,1732572633464,-218.70522725,0.00019972,2]
[343313769,1732572633476,-500.0,0.00019972,2]
[343313771,1732572633487,-500.0,0.00019972,2]
[343313774,1732572633497,-500.0,0.00019972,2]
[343313776,1732572633507,-500.0,0.00019972,2]
[343313778,1732572633518,-500.0,0.00019972,2]
[343313780,1732572633530,-500.0,0.00019972,2]
[343313782,1732572633540,-500.0,0.00019972,2]
[343313784,1732572633550,-500.0,0.00019972,2]
[343313785,1732572633564,-500.0,0.00019972,2]
[343313787,1732572633574,-500.0,0.00019972,2]
[343313790,1732572633584,-500.0,0.00019972,2]
[343313792,1732572633596,-500.0,0.00019972,2]
[343313793,1732572633606,-500.0,0.00019972,2]
[343313795,1732572633616,-500.0,0.00019972,2]
[343313797,1732572633625,-350.0,0.00019972,2]
[343313799,1732572633638,-500.0,0.00019972,2]
[343313801,1732572633649,-500.0,0.00019972,2]
[343313803,1732572633659,-500.0,0.00019972,2]
[343313805,1732572633668,-500.0,0.00019972,2]
[343313807,1732572633678,-500.0,0.00019972,2]
[343313809,1732572633687,-500.0,0.00019972,2]
[343313811,1732572633697,-500.0,0.00019972,2]